fUST/lending_fUST_20240306
["ID","MTS","AMOUNT","RATE_DAILY","PERIOD"]
[317117528,1709686233494,-500.0,0.00023693,2]
[317117531,1709686233503,-153.0,0.000237,2]
[317117532,1709686233512,-153.0,0.000237,2]
[317117534,1709686233522,-162.4894416,0.000237,2]
[317117536,1709686233531,-1874.7,0.00023705,2]
[317117539,1709686233541,-170.06,0.00023705,2]
[317117541,1709686233550,-1874.7,0.00023715,2]
[317117543,1709686233560,-1603.71261968,0.00023724,2]
[317118291,1709686241067,-500.0,0.00023592,2]
[317118293,1709686241077,-646.96259442,0.00023592,2]
[317118295,1709686241087,-500.0,0.00023592,2]
[317118297,1709686241097,-270.98738032,0.00023724,2]
[317118299,1709686241106,-170.6275102,0.00023759,2]
[317118301,1709686241116,-8239.79880319,0.0002389,2]
[317118303,1709686241125,-965.38167124,0.000239,2]
[317118305,1709686241135,-870.0,0.000239,2]
[317118307,1709686241144,-286.2763809,0.00023998,2]
[317118309,1709686241153,-264.14673511,0.00023998,2]
[317118311,1709686241162,-1874.7,0.00023999,2]
[317118313,1709686241174,-1874.7,0.00023999,2]
[317118315,1709686241184,-1874.7,0.00023999,2]
[317118318,1709686241194,-1874.7,0.00023999,2]
[317118320,1709686241203,-1874.7,0.00023999,2]
[317118321,1709686241211,-1874.7,0.00023999,2]
[317118323,1709686241221,-1874.7,0.00023999,2]
[317118325,1709686241230,-1874.7,0.00023999,2]
[317118327,1709686241239,-1874.7,0.00023999,2]
[317118329,1709686241248,-1874.7,0.00023999,2]
[317118331,1709686241258,-1874.7,0.00023999,2]
[317118333,1709686241267,-1874.7,0.00023999,2]
[317118335,1709686241277,-1874.7,0.00023999,2]
[317118337,1709686241286,-1874.7,0.00023999,2]
[317118339,1709686241297,-1874.7,0.00023999,2]
[317118341,1709686241308,-1874.7,0.00023999,2]
[317118343,1709686241318,-1782796.99282905,0.00024,6]
[317118345,1709686241332,-45382.9960234,0.00024,6]
[317118347,1709686241344,-1158.95653593,0.00024,6]
[317118351,1709686241365,-500.0,0.00023287,2]
[317118353,1709686241374,-839.12430165,0.00024,6]
[317118355,1709686241386,-54668.54398514,0.00024,6]
[317118357,1709686241396,-420724.72164,0.00024,6]
[317118359,1709686241407,-12978.33353076,0.00024,6]
[317118927,1709686250096,-237.889174,0.00022947,2]
[317118929,1709686250107,-768.480826,0.00023187,2]
[317118931,1709686250119,-1993.915248,0.00023187,2]
[317118933,1709686250128,-500.0,0.00023287,2]
[317118935,1709686250138,-500.0,0.00023287,2]
[317118937,1709686250148,-500.0,0.00023287,2]
[317118939,1709686250158,-500.0,0.00023287,2]
[317118941,1709686250168,-1493.84,0.00023592,2]
[317118943,1709686250179,-1493.84,0.00023592,2]
[317118945,1709686250189,-1493.84,0.00023592,2]
[317118947,1709686250199,-1493.84,0.00023592,2]
[317118950,1709686250210,-1493.84,0.00023592,2]
[317118952,1709686250220,-1493.84,0.00023592,2]
[317118954,1709686250230,-227.86,0.00023693,2]
[317118955,1709686250240,-3835.26,0.00023934,2]
[317118957,1709686250250,-10772.25,0.00023958,2]
[317118959,1709686250260,-1493.84,0.00023973,2]
[317118961,1709686250270,-294.63994565,0.00023998,2]
[317118963,1709686250280,-1493.84,0.00023999,2]
[317118965,1709686250290,-1493.84,0.00023999,2]
[317118968,1709686250300,-1493.84,0.00023999,2]
[317118969,1709686250311,-1493.84,0.00023999,2]
[317118971,1709686250322,-1493.84,0.00023999,2]
[317118974,1709686250332,-1493.84,0.00023999,2]
[317118976,1709686250342,-1493.84,0.00023999,2]
[317118978,1709686250353,-1493.84,0.00023999,2]
[317118980,1709686250362,-1493.84,0.00023999,2]
[317118982,1709686250372,-1493.84,0.00023999,2]
[317118984,1709686250381,-1493.84,0.00023999,2]
[317118986,1709686250391,-1167747.22239765,0.00024,6]
[317121187,1709686462169,200.0,0.00027,120]
[317121238,1709687199786,294.63994565,0.00018983,2]
[317121239,1709687208185,294.63994565,0.00018983,2]
[317121240,1709687216183,294.63994565,0.00018983,2]
[317121241,1709687224209,24900.0,0.00018838,2]
[317121242,1709687231607,9717.1882869,0.00018989,2]
[317121244,1709687302067,1504.839667,0.00018838,2]
[317121245,1709687342004,2683.1414593,0.00018838,2]
[317121246,1709687354154,-294.63994565,0.00019171,2]
[317121247,1709687354173,-169.077529,0.00019178,2]
[317121248,1709687354193,-166.666666,0.00019178,2]
[317121249,1709687354213,-237.889174,0.00019393,2]
[317121250,1709687354231,-166.666666,0.00019627,2]
[317121251,1709687354251,-2191.36159943,0.0002,2]
[317121252,1709687356087,-154.87609912,0.0001917,2]
[317121253,1709687356110,-22372.04463228,0.0002,2]
[317121254,1709687356131,-2205.68882906,0.0002,2]
[317121255,1709687356275,-166.666666,0.00020076,2]
[317121256,1709687356298,-3000.0,0.00020097,2]
[317121257,1709687356322,-166.666666,0.00020524,2]
[317121258,1709687356348,-166.666666,0.00020973,2]
[317121259,1709687356369,-3391.61293163,0.00021,2]
[317121280,1709687427832,1453.53733112,0.000189,2]
[317121340,1709687433603,-30003.26424689,0.00021,2]
[317121341,1709687433614,-7518.25114207,0.00021,2]
[317121342,1709687433624,-166.666666,0.00021422,2]
[317121343,1709687433634,-822.29827,0.00021964,2]
[317121344,1709687433643,-155.0,0.00022,2]
[317121345,1709687433654,-294.63994565,0.00022877,2]
[317121346,1709687433664,-153.0,0.00022878,2]
[317121347,1709687433674,-200.8478084,0.00022878,2]
[317121348,1709687433684,-153.0,0.00022978,2]
[317121349,1709687433695,-200.8478084,0.00022978,2]
[317121351,1709687433704,-200.8478084,0.00022978,2]
[317121352,1709687433715,-5532.62455074,0.00023,2]
[317121353,1709687433724,-155.0,0.00023,2]
[317121354,1709687433733,-153.0,0.00023,2]
[317121355,1709687433743,-153.0,0.00023,2]
[317121356,1709687433752,-153.0,0.00023,2]
[317121357,1709687433762,-219.6969648,0.00023,2]
[317121358,1709687433772,-153.0,0.00023,2]
[317121359,1709687433781,-200.8478084,0.00023,2]
[317121360,1709687433791,-153.0,0.00023,2]
[317121361,1709687433800,-156.0,0.00023014,2]
[317121362,1709687433899,-5165.59515926,0.00023059,3]
[317121363,1709687433910,-200.91827318,0.00023059,2]
[317121364,1709687433920,-166.90644757,0.00023063,2]
[317121365,1709687433929,-153.0,0.00023078,2]
[317121366,1709687433939,-200.8478084,0.00023078,2]
[317121367,1709687433951,-439.48,0.00023126,3]
[317121368,1709687433960,-576.3,0.00023126,3]
[317121369,1709687433970,-288.15,0.00023126,3]
[317121370,1709687433979,-864.5,0.00023126,3]
[317121371,1709687433988,-27366.17777187,0.00023136,5]
[317121402,1709687438732,-500.0,0.00023136,5]
[317121859,1709687442966,-3030.0,0.00023136,5]
[317129514,1709688336599,1461.3839094,0.00018962,2]
[317129515,1709688527830,613.5835545,0.00018562,2]
[317129517,1709688548099,-315.51774917,0.0001917,2]
[317129518,1709688548119,-154.8915759,0.0001917,2]
[317129519,1709688548139,-154.8915759,0.00019171,2]
[317129520,1709688548159,-154.8915759,0.00019171,2]
[317129521,1709688548179,-294.63994565,0.00019172,2]
[317129522,1709688548198,-1635.78029604,0.00019173,2]
[317129523,1709688548217,-325.2891351,0.00019178,2]
[317129524,1709688548240,-162.218824,0.00019178,2]
[317129525,1709688548259,-166.853742,0.00019178,2]
[317129526,1709688548278,-354.027973,0.00019464,2]
[317129527,1709688548298,-298.46,0.0001999,3]
[317129528,1709688548318,-362.42,0.0001999,3]
[317129529,1709688548337,-181.21,0.0001999,3]
[317129530,1709688548466,-543.63,0.0001999,3]
[317129531,1709688548493,-173712.95224417,0.0002,2]
[317129532,1709688548521,-20947.67804929,0.00020394,2]
[317129533,1709688548578,270.2865101,0.00018767,2]
[317129534,1709688558259,-3952.32195071,0.00020394,2]
[317129535,1709688558279,-42.32007816,0.00020838,2]
[317129541,1709688626559,173.81092294,0.00023998,120]
[317129569,1709688633341,1089.03386984,0.000189,2]
[317129570,1709688633354,-126.75745084,0.00020838,2]
[317129571,1709688633363,-24900.0,0.00021046,2]
[317129572,1709688633372,-596.92,0.0002136,3]
[317129573,1709688633381,-724.84,0.0002136,3]
[317129574,1709688633390,-362.42,0.0002136,3]
[317129575,1709688633399,-1014.73155987,0.00021839,2]
[317129576,1709688633408,-168.0,0.00022,2]
[317129577,1709688633418,-166.46955672,0.00022141,2]
[317129578,1709688633427,-50000.0,0.00022202,7]
[317129579,1709688633436,-153.0,0.00022241,2]
[317129580,1709688633446,-153.0,0.00022241,2]
[317129581,1709688633456,-153.0,0.00022241,2]
[317129582,1709688633465,-153.0,0.00022241,2]
[317129583,1709688633474,-154.163685,0.00022241,2]
[317129584,1709688633484,-153.0,0.00022341,2]
[317129585,1709688633493,-153.0,0.00022356,2]
[317129586,1709688633502,-153.0,0.00022356,2]
[317129587,1709688633511,-200.8478084,0.00022356,2]
[317129588,1709688633520,-153.0,0.00022356,2]
[317129589,1709688633531,-153.0,0.00022356,2]
[317129590,1709688633540,-200.8478084,0.00022356,2]
[317129591,1709688633549,-153.0,0.00022356,2]
[317129592,1709688633559,-200.8478084,0.00022356,2]
[317129593,1709688633568,-153.0,0.00022378,2]
[317129594,1709688633578,-153.0,0.00022378,2]
[317129595,1709688633587,-153.0,0.00022378,2]
[317129596,1709688633596,-153.0,0.00022378,2]
[317129597,1709688633606,-153.0,0.00022378,2]
[317129598,1709688633615,-153.0,0.00022378,2]
[317129599,1709688633624,-153.0,0.00022378,2]
[317129600,1709688633634,-153.0,0.00022378,2]
[317129601,1709688633643,-154.7105985,0.00022378,2]
[317129602,1709688633653,-154.2508101,0.00022378,2]
[317129603,1709688633662,-153.0,0.00022478,2]
[317129604,1709688633674,-153.0,0.00022478,2]
[317129605,1709688633683,-153.0,0.00022478,2]
[317129606,1709688633695,-154.8915759,0.0002264,2]
[317129607,1709688633704,-154.8915759,0.0002264,2]
[317129608,1709688633713,-153.0,0.00022641,2]
[317129609,1709688633723,-153.0,0.00022652,2]
[317129610,1709688633733,-200.8478084,0.00022678,2]
[317129611,1709688633743,-200.8478084,0.00022767,2]
[317129612,1709688633752,-153.0,0.00022778,2]
[317129613,1709688633762,-153.0,0.00022778,2]
[317129614,1709688633773,-153.0,0.00022778,2]
[317129615,1709688633784,-647.84488626,0.00022858,2]
[317129616,1709688633794,-153.0,0.00022877,2]
[317129617,1709688633802,-155.0,0.00022959,2]
[317129618,1709688633812,-168.0,0.00023014,2]
[317129619,1709688633821,-406.13448681,0.00023036,2]
[317129620,1709688633830,-491.20005331,0.00023036,2]
[317129621,1709688633839,-314.10829478,0.00023063,3]
[317129622,1709688633848,-1000.0,0.00023064,7]
[317129623,1709688633857,-454.95683568,0.00023067,3]
[317129624,1709688633866,-1314.1466316,0.00023069,3]
[317129625,1709688633876,-153.0,0.000231,2]
[317129626,1709688633886,-153.0,0.000231,2]
[317129627,1709688633895,-500.0,0.00023135,2]
[317129628,1709688633904,-500.0,0.00023135,2]
[317129629,1709688633914,-500.0,0.00023135,2]
[317129630,1709688633924,-358.71492799,0.00023135,2]
[317129631,1709688633934,-5318.9156055,0.00023136,5]
[317129632,1709688633943,-11127.12488416,0.00023136,2]
[317129633,1709688633953,-2084.57635503,0.00023136,2]
[317129634,1709688633961,-4252.37940646,0.00023136,7]
[317130433,1709688646325,-153.0,0.00022278,2]
[317130435,1709688646334,-150.49818981,0.00022413,2]
[317130437,1709688646344,-294.64006495,0.00022639,2]
[317130439,1709688646353,-500.0,0.00023135,2]
[317130441,1709688646363,-500.0,0.00023135,2]
[317130443,1709688646372,-500.0,0.00023135,2]
[317130445,1709688646382,-500.0,0.00023135,2]
[317130447,1709688646391,-500.0,0.00023135,2]
[317130449,1709688646400,-272.13246766,0.00023135,2]
[317130451,1709688646410,-747.62059354,0.00023136,7]
[317130454,1709688646419,-5000.0,0.00023136,7]
[317130456,1709688646429,-5000.0,0.00023136,7]
[317130458,1709688646438,-10019.1552369,0.00023136,5]
[317130459,1709688646447,-3076.99381312,0.00023136,7]
[317131785,1709689550126,-214.95418178,0.00021029,2]
[317131786,1709689629143,-154.93802479,0.00020816,2]
[317131787,1709689629162,-45.90978361,0.00020817,2]
[317131789,1709689754107,-154.93802479,0.00020816,2]
[317131790,1709689754127,-154.93802479,0.00020816,2]
[317131791,1709689754149,-294.64006495,0.00020816,2]
[317131792,1709689754169,-263.96626597,0.00020817,2]
[317131793,1709689754190,-3359.46934471,0.00020817,2]
[317131794,1709689754209,-154.93802479,0.00020817,2]
[317131795,1709689754229,-315.56511995,0.00021032,2]
[317131796,1709689754248,-2164.98853785,0.00021033,2]
[317131797,1709689754267,-288.06646188,0.00021036,2]
[317131804,1709689763083,-471.84913034,0.00020608,2]
[317131805,1709689763111,-132.66698419,0.00020608,2]
[317131806,1709689767559,446.63966865,0.00020817,2]
[317131807,1709689771099,-153.0,0.00020817,2]
[317131808,1709689771126,-1000.0,0.00020817,2]
[317131950,1709689838527,-2352.91811861,0.00020609,2]
[317131953,1709689838538,-1199.91811861,0.00020817,2]
[317131954,1709689838548,-154.95351395,0.00020817,2]
[317131957,1709689838557,-2844.8765387,0.00020941,2]
[317131959,1709689838566,-294.64006495,0.00021529,2]
[317131961,1709689838577,-18351.6144551,0.0002153,2]
[317131962,1709689838587,-177.013986,0.0002164,2]
[317131964,1709689838598,-177.0,0.00022,2]
[317131967,1709689838607,-50000.0,0.00022595,7]
[317131968,1709689838616,-500.0,0.00022899,2]
[317131980,1709689838710,-500.0,0.00022899,2]
[317131982,1709689838723,-500.0,0.00022899,2]
[317131984,1709689838732,-323.98448678,0.00022899,2]
[317131986,1709689838741,-50000.0,0.000229,7]
[317131988,1709689838751,-551.32177745,0.00023065,3]
[317131990,1709689838761,-1490.28265226,0.00023065,2]
[317131992,1709689838770,-1000.0,0.00023067,7]
[317131994,1709689838779,-153.683006,0.000231,2]
[317131996,1709689838788,-8664.52992299,0.0002313,5]
[317131998,1709689838798,-944.73547086,0.0002313,2]
[317132000,1709689838807,-1923.00618688,0.00023136,7]
[317132002,1709689838816,-1572.68532894,0.00023136,2]
[317132004,1709689838826,-25590.14047979,0.00023136,3]
[317132006,1709689838835,-193.87,0.00023186,2]
[317132008,1709689838845,-500.0,0.00023186,2]
[317132010,1709689838854,-202.95732377,0.00023186,2]
[317132012,1709689838863,-298.18516696,0.00023186,2]
[317132014,1709689838872,-500.0,0.00023186,2]
[317132016,1709689838882,-500.0,0.00023186,2]
[317132018,1709689838891,-696.39699137,0.00023187,2]
[317132020,1709689838901,-186224.50847671,0.00023187,2]
[317132022,1709689838910,-778.33767797,0.00023187,2]
[317132024,1709689838919,-778.33767797,0.00023187,2]
[317132026,1709689838927,-778.33767797,0.00023187,2]
[317132028,1709689838937,-778.33767797,0.00023187,2]
[317132030,1709689838947,-778.33767797,0.00023187,2]
[317132032,1709689838956,-778.33767797,0.00023187,2]
[317132034,1709689838965,-778.33767797,0.00023187,2]
[317132036,1709689838974,-778.33767797,0.00023187,2]
[317132038,1709689838984,-778.33767797,0.00023187,2]
[317132040,1709689838994,-778.33767797,0.00023187,2]
[317132042,1709689839004,-778.33767797,0.00023187,2]
[317132044,1709689839013,-778.33767797,0.00023187,2]
[317132046,1709689839023,-778.33767797,0.00023187,2]
[317132048,1709689839034,-778.33767797,0.00023187,2]
[317132050,1709689839045,-778.33767797,0.00023187,2]
[317132052,1709689839054,-778.33767797,0.00023187,2]
[317132053,1709689839066,-778.33767797,0.00023187,2]
[317132055,1709689839075,-778.33767797,0.00023187,2]
[317132058,1709689839085,-778.33767797,0.00023187,2]
[317132060,1709689839094,-778.33,0.00023187,2]
[317132062,1709689839103,-3113.35071187,0.00023187,2]
[317132064,1709689839113,-3113.35071187,0.00023187,2]
[317132065,1709689839124,-3113.35071187,0.00023187,2]
[317132068,1709689839134,-3113.35071187,0.00023187,2]
[317132069,1709689839143,-3113.35071187,0.00023187,2]
[317132071,1709689839153,-3113.35071187,0.00023187,2]
[317132074,1709689839163,-3113.35071187,0.00023187,2]
[317132075,1709689839172,-3113.35071187,0.00023187,2]
[317132077,1709689839182,-3113.35071187,0.00023187,2]
[317132080,1709689839191,-3113.35071187,0.00023187,2]
[317132082,1709689839201,-3113.35071187,0.00023187,2]
[317132083,1709689839211,-3113.35071187,0.00023187,2]
[317132086,1709689839220,-3113.35071187,0.00023187,2]
[317132087,1709689839230,-3113.35071187,0.00023187,2]
[317132090,1709689839240,-3113.35071187,0.00023187,2]
[317132091,1709689839249,-3113.35071187,0.00023187,2]
[317132094,1709689839261,-194.58128134,0.00023187,2]
[317132095,1709689839271,-194.58128134,0.00023187,2]
[317132097,1709689839280,-153.19834409,0.00023187,2]
[317132099,1709689839291,-153.19834409,0.00023187,2]
[317132102,1709689839300,-153.19834409,0.00023187,2]
[317132103,1709689839310,-153.19834409,0.00023187,2]
[317132105,1709689839319,-153.19834409,0.00023187,2]
[317132107,1709689839329,-153.19834409,0.00023187,2]
[317132109,1709689839338,-153.19834409,0.00023187,2]
[317132111,1709689839348,-153.19834409,0.00023187,2]
[317132113,1709689839357,-153.19834409,0.00023187,2]
[317132115,1709689839367,-153.19,0.00023187,2]
[317132117,1709689839376,-306.39668819,0.00023187,2]
[317132119,1709689839385,-306.39668819,0.00023187,2]
[317132121,1709689839394,-306.39668819,0.00023187,2]
[317132123,1709689839403,-306.39668819,0.00023187,2]
[317132125,1709689839412,-306.39668819,0.00023187,2]
[317132127,1709689839421,-306.39668819,0.00023187,2]
[317132129,1709689839431,-306.39668819,0.00023187,2]
[317132131,1709689839440,-306.39668819,0.00023187,2]
[317132133,1709689839449,-306.39668819,0.00023187,2]
[317132135,1709689839458,-306.39668819,0.00023187,2]
[317132137,1709689839467,-306.39668819,0.00023187,2]
[317132139,1709689839476,-306.39668819,0.00023187,2]
[317132141,1709689839485,-306.39668819,0.00023187,2]
[317132143,1709689839494,-306.39668819,0.00023187,2]
[317132145,1709689839505,-306.39668819,0.00023187,2]
[317132147,1709689839513,-306.39668819,0.00023187,2]
[317132149,1709689839522,-50000.0,0.00023205,7]
[317132150,1709689839533,-3113.35071187,0.00023218,2]
[317132151,1709689839542,-306.39668819,0.00023218,2]
[317132152,1709689839551,-16165.32366456,0.00023285,2]
[317132153,1709689839560,-3335.34535402,0.00023285,2]
[317132154,1709689839569,-403.47015161,0.00023285,2]
[317132155,1709689839579,-247.7333838,0.00023285,2]
[317132156,1709689839587,-263.02396415,0.00023285,7]
[317132157,1709689839597,-652.86502819,0.00023285,2]
[317132158,1709689839606,-286.56262958,0.00023285,2]
[317132159,1709689839615,-244.21595388,0.00023285,2]
[317132160,1709689839624,-264.14255877,0.00023286,2]
[317132161,1709689839633,-415.39860347,0.00023287,3]
[317132162,1709689839643,-500.0,0.00023287,2]
[317132163,1709689839653,-500.0,0.00023287,2]
[317132164,1709689839662,-608.5441377,0.00023287,2]
[317132165,1709689839671,-500.0,0.00023287,2]
[317132166,1709689839680,-500.0,0.00023287,2]
[317132167,1709689839689,-500.0,0.00023287,2]
[317132168,1709689839698,-500.0,0.00023287,2]
[317132169,1709689839710,-500.0,0.00023287,2]
[317132170,1709689839718,-500.0,0.00023287,2]
[317132171,1709689839728,-368.44569442,0.00023287,2]
[317132172,1709689839737,-500.0,0.00023287,2]
[317132173,1709689839746,-500.0,0.00023287,2]
[317132174,1709689839756,-500.0,0.00023287,2]
[317132175,1709689839765,-500.8607124,0.00023287,2]
[317132176,1709689839774,-500.0,0.00023287,2]
[317132177,1709689839783,-500.0,0.00023287,2]
[317132178,1709689839792,-500.0,0.00023287,2]
[317132179,1709689839802,-500.0,0.00023287,2]
[317132180,1709689839811,-500.01962874,0.00023287,2]
[317132181,1709689839821,-500.0,0.00023287,2]
[317132182,1709689839830,-500.0,0.00023287,2]
[317132183,1709689839840,-500.0,0.00023287,2]
[317132184,1709689839850,-500.0,0.00023287,2]
[317132185,1709689839859,-501.68990471,0.00023287,2]
[317132186,1709689839868,-500.0,0.00023287,2]
[317132187,1709689839877,-500.0,0.00023287,2]
[317132189,1709689839886,-508.21461079,0.00023287,2]
[317132190,1709689839896,-502.57846069,0.00023287,2]
[317132191,1709689839906,-501.33502304,0.00023287,2]
[317132192,1709689839915,-500.0,0.00023287,2]
[317132194,1709689839924,-500.0,0.00023287,2]
[317132197,1709689839935,-500.0,0.00023287,2]
[317132199,1709689839944,-500.0,0.00023287,2]
[317132201,1709689839953,-500.0,0.00023287,2]
[317132203,1709689839962,-500.0,0.00023287,2]
[317132205,1709689839971,-500.0,0.00023287,2]
[317132207,1709689839981,-500.0,0.00023287,2]
[317132209,1709689839990,-500.0,0.00023287,2]
[317132211,1709689840000,-500.0,0.00023287,2]
[317132212,1709689840010,-561.33360406,0.00023287,2]
[317132215,1709689840021,-500.0,0.00023287,2]
[317132216,1709689840030,-502.49318919,0.00023287,2]
[317132219,1709689840044,-500.0,0.00023287,2]
[317132221,1709689840053,-500.0,0.00023287,2]
[317132222,1709689840064,-500.0,0.00023287,2]
[317132225,1709689840074,-500.0,0.00023287,2]
[317132227,1709689840083,-500.0,0.00023287,2]
[317132228,1709689840093,-500.0,0.00023287,2]
[317132230,1709689840102,-500.0,0.00023287,2]
[317132232,1709689840112,-500.0,0.00023287,2]
[317132234,1709689840121,-500.0,0.00023287,2]
[317132236,1709689840132,-500.0,0.00023287,2]
[317132238,1709689840141,-500.0,0.00023287,2]
[317132240,1709689840150,-500.0,0.00023287,2]
[317132242,1709689840160,-500.0,0.00023287,2]
[317132244,1709689840169,-507.32862889,0.00023287,2]
[317132246,1709689840178,-500.0,0.00023287,2]
[317132248,1709689840187,-502.9132896,0.00023287,2]
[317132250,1709689840196,-399.67792884,0.00023287,2]
[317132252,1709689840206,-500.42255074,0.00023287,2]
[317132254,1709689840215,-500.99592153,0.00023287,2]
[317132256,1709689840224,-266.8359505,0.00023287,2]
[317132258,1709689840234,-500.0,0.00023287,2]
[317132260,1709689840243,-500.0,0.00023287,2]
[317132262,1709689840252,-500.0,0.00023287,2]
[317132264,1709689840263,-500.0,0.00023287,2]
[317132266,1709689840273,-504.04265895,0.00023287,2]
[317132268,1709689840283,-500.0,0.00023287,2]
[317132270,1709689840292,-504.63914315,0.00023287,2]
[317132272,1709689840301,-500.0,0.00023287,2]
[317132274,1709689840310,-394.79524754,0.00023287,2]
[317132276,1709689840319,-500.0,0.00023287,2]
[317132277,1709689840328,-285.89632819,0.00023287,2]
[317132278,1709689840337,-500.45161843,0.00023287,2]
[317132279,1709689840346,-170.26767253,0.00023287,2]
[317132280,1709689840354,-191.9365285,0.00023287,2]
[317132281,1709689840363,-500.0,0.00023287,2]
[317132282,1709689840371,-500.0,0.00023287,2]
[317132283,1709689840380,-500.0,0.00023287,2]
[317132284,1709689840390,-635.14261505,0.00023287,2]
[317132285,1709689840399,-500.0,0.00023287,2]
[317132286,1709689840408,-564.48433871,0.00023287,2]
[317132287,1709689840417,-580.63749474,0.00023287,2]
[317132288,1709689840427,-666.73,0.00023287,2]
[317132289,1709689840436,-666.73,0.00023287,2]
[317132290,1709689840445,-666.73,0.00023287,2]
[317132291,1709689840454,-500.0,0.00023287,2]
[317132292,1709689840463,-666.73,0.00023287,2]
[317132293,1709689840473,-500.0,0.00023287,2]
[317132294,1709689840483,-666.73,0.00023287,2]
[317132295,1709689840493,-500.0,0.00023287,2]
[317132296,1709689840502,-666.73,0.00023287,2]
[317132297,1709689840511,-500.0,0.00023287,2]
[317132298,1709689840521,-666.73,0.00023287,2]
[317132300,1709689840531,-500.0,0.00023287,2]
[317132301,1709689840541,-500.0,0.00023287,2]
[317132303,1709689840551,-666.73,0.00023287,2]
[317132305,1709689840561,-500.0,0.00023287,2]
[317132307,1709689840572,-666.73,0.00023287,2]
[317132309,1709689840582,-500.0,0.00023287,2]
[317132311,1709689840592,-666.73,0.00023287,2]
[317132313,1709689840602,-500.0,0.00023287,2]
[317132314,1709689840611,-260.73773048,0.00023287,2]
[317132316,1709689840621,-666.73,0.00023287,2]
[317132318,1709689840631,-666.73,0.00023287,2]
[317132320,1709689840641,-666.73,0.00023287,2]
[317132322,1709689840650,-500.0,0.00023287,2]
[317132324,1709689840659,-501.85973496,0.00023287,2]
[317132326,1709689840668,-500.0,0.00023287,2]
[317132328,1709689840678,-500.0,0.00023287,2]
[317132330,1709689840688,-500.0,0.00023287,2]
[317132332,1709689840697,-500.0,0.00023287,2]
[317132334,1709689840706,-500.0,0.00023287,2]
[317132336,1709689840715,-496.28321095,0.00023287,2]
[317132338,1709689840726,-500.0,0.00023287,2]
[317132340,1709689840736,-500.0,0.00023287,2]
[317132342,1709689840745,-500.0,0.00023287,2]
[317132344,1709689840755,-500.0,0.00023287,2]
[317132346,1709689840764,-500.0,0.00023287,2]
[317132355,1709689840773,-500.0,0.00023287,2]
[317132358,1709689840860,-500.0,0.00023287,2]
[317132360,1709689840870,-500.0,0.00023287,2]
[317132362,1709689840878,-500.0,0.00023287,2]
[317132364,1709689840887,-500.0,0.00023287,2]
[317132366,1709689840896,-500.0,0.00023287,2]
[317132368,1709689840905,-500.0,0.00023287,2]
[317132370,1709689840914,-500.0,0.00023287,2]
[317132371,1709689840925,-500.0,0.00023287,2]
[317132374,1709689840936,-502.03674345,0.00023287,2]
[317132376,1709689840945,-380.76490317,0.00023287,2]
[317132377,1709689840954,-500.0,0.00023287,2]
[317132379,1709689840964,-500.0,0.00023287,2]
[317132381,1709689840973,-500.0,0.00023287,2]
[317132383,1709689840983,-500.0,0.00023287,2]
[317132385,1709689840992,-500.0,0.00023287,2]
[317132387,1709689841001,-500.0,0.00023287,2]
[317132389,1709689841013,-500.0,0.00023287,2]
[317132391,1709689841027,-500.0,0.00023287,2]
[317132393,1709689841037,-500.0,0.00023287,2]
[317132396,1709689841048,-500.0,0.00023287,2]
[317132398,1709689841058,-500.0,0.00023287,2]
[317132399,1709689841067,-500.0,0.00023287,2]
[317132401,1709689841077,-500.0,0.00023287,2]
[317132403,1709689841086,-500.0,0.00023287,2]
[317132405,1709689841096,-501.02512688,0.00023287,2]